fUST/lending_fUST_20251026
["ID","MTS","AMOUNT","RATE_DAILY","PERIOD"]
[392378149,1761410511719,3419.9997671,0.00017064,2]
[392378150,1761410514902,2339.4502329,0.00017064,2]
[392378151,1761410514926,864.3497671,0.00017064,2]
[392378152,1761410517366,543.72,0.00017064,2]
[392378153,1761410519566,500.0,0.00017064,2]
[392378154,1761410524904,-300.0,0.00017063,2]
[392378155,1761410531161,-1188.0,0.00017064,2]
[392378156,1761410532771,253.76,0.00017055,3]
[392378157,1761410536654,49235.3182131,0.00016068,2]
[392378158,1761410537643,-500.0,0.00017064,2]
[392378159,1761410537731,-7254.90237591,0.00017064,2]
[392378160,1761410537798,-10000.01,0.00017064,2]
[392378161,1761410537970,-10000.01,0.00017064,2]
[392378162,1761410538194,-10000.01,0.00017064,2]
[392378163,1761410538751,-10000.01,0.00017064,2]
[392378164,1761410538792,-2745.05762409,0.00017064,2]
[392378165,1761410542076,992.86,0.00017064,2]
[392378166,1761410542262,266.0336965,0.00016085,2]
[392378178,1761410543085,500.0,0.00017064,2]
[392378182,1761410543458,761.3,0.00017056,3]
[392378183,1761410549069,1391.88,0.00017064,2]
[392378184,1761410549757,500.0,0.00017064,2]
[392378185,1761410551035,500.0,0.00017063,2]
[392378186,1761410551827,359.12105532,0.00017063,2]
[392378187,1761410552519,-140.87894468,0.00017063,2]
[392378188,1761410552545,-448.79957868,0.00017063,2]
[392378189,1761410552572,-995.55,0.00017064,2]
[392378190,1761410552635,308.61135864,0.00017064,2]
[392378191,1761410552680,171.71356127,0.00017064,2]
[392378192,1761410553107,500.0,0.00017063,2]
[392378193,1761410553599,2093.46,0.00017064,2]
[392378194,1761410557266,215.65621242,0.00017064,2]
[392378195,1761410557400,500.0,0.00017064,2]
[392378196,1761410557432,500.0,0.00017064,2]
[392378197,1761410557491,544.33554731,0.00017064,2]
[392378198,1761410558404,1200.0,0.00017064,2]
[392378199,1761410558598,795.77627364,0.00017064,2]
[392378200,1761410558623,211.75372636,0.00017064,2]
[392378201,1761410560121,2328.55,0.00017064,2]
[392378202,1761410561654,1596.4,0.00017064,2]
[392378203,1761410562019,500.0,0.00017064,2]
[392378204,1761410564595,178.86414551,0.00017064,2]
[392378205,1761410567368,500.0,0.00017064,2]
[392378206,1761410567598,1462.41,0.00017064,2]
[392378207,1761410568311,957.38,0.00017064,2]
[392378208,1761410570208,293.92697803,0.00017064,2]
[392378209,1761410574836,500.0,0.00017064,2]
[392378210,1761410575757,530.69,0.00017064,2]
[392378211,1761410577581,524.84140373,0.00017064,2]
[392378212,1761410578800,415.19374637,0.00017064,2]
[392378213,1761410578834,84.80625363,0.00017064,2]
[392378214,1761410582132,500.0,0.00017064,2]
[392378215,1761410585325,300.0,0.00017064,2]
[392378216,1761410586532,500.0,0.00017064,2]
[392378217,1761410586592,500.0,0.00017064,2]
[392378218,1761410586692,296.30221222,0.00016965,2]
[392378219,1761410588226,708.82,0.00017064,2]
[392378220,1761410588932,500.0,0.00017064,2]
[392378221,1761410594285,964.24,0.00017064,2]
[392378222,1761410596634,500.0,0.00017064,2]
[392378223,1761410597730,-500.0,0.00017065,2]
[392378224,1761410597756,-504.56055981,0.00017065,2]
[392378225,1761410597782,-500.0,0.00017065,2]
[392378226,1761410598011,-500.0,0.00017065,2]
[392378227,1761410598038,-500.0,0.00017065,2]
[392378228,1761410598064,-500.0,0.00017065,2]
[392378229,1761410598090,-500.0,0.00017065,2]
[392378230,1761410598120,-500.0,0.00017065,2]
[392378231,1761410598149,-500.0,0.00017065,2]
[392378232,1761410598176,-414.51702955,0.00017065,2]
[392378233,1761410598318,-161.85482128,0.00017065,2]
[392378234,1761410598344,-500.0,0.00017065,2]
[392378235,1761410598371,-500.0,0.00017065,2]
[392378236,1761410598399,-500.0,0.00017065,2]
[392378237,1761410598425,-500.0,0.00017065,2]
[392378238,1761410598454,-500.0,0.00017065,2]
[392378239,1761410598481,-506.62789788,0.00017065,2]
[392378240,1761410598507,-500.0,0.00017065,2]
[392378241,1761410598533,-500.0,0.00017065,2]
[392378242,1761410598560,-500.0,0.00017065,2]
[392378243,1761410598586,-99.59456168,0.00017065,2]
[392378244,1761410598689,-463.85543832,0.00017065,2]
[392378245,1761410598717,-500.0,0.00017065,2]
[392378246,1761410598744,-968.88,0.00017065,2]
[392378247,1761410598772,-943.57,0.00017065,2]
[392378248,1761410598798,-500.0,0.00017065,2]
[392378249,1761410598825,-500.0,0.00017065,2]
[392378250,1761410598853,-500.0,0.00017065,2]
[392378251,1761410598881,-498.71565523,0.00017065,2]
[392378252,1761410599035,-500.0,0.00017065,2]
[392378253,1761410599062,-500.0,0.00017065,2]
[392378254,1761410599088,-1020.6,0.00017065,2]
[392378255,1761410599122,-529.64,0.00017065,2]
[392378256,1761410599153,-486.45802351,0.00017065,2]
[392378257,1761410599179,-500.0,0.00017065,2]
[392378258,1761410599205,-603.30805872,0.00017065,2]
[392378259,1761410599229,-763.2,0.00017065,2]
[392378260,1761410599343,-500.0,0.00017065,2]
[392378261,1761410599369,-500.0,0.00017065,2]
[392378262,1761410599396,-500.0,0.00017065,2]
[392378263,1761410599423,-500.0,0.00017065,2]
[392378264,1761410599450,-500.0,0.00017065,2]
[392378265,1761410599476,-500.0,0.00017065,2]
[392378266,1761410599503,-500.0,0.00017065,2]
[392378267,1761410599529,-1005.44,0.00017065,2]
[392378268,1761410599555,-489.13,0.00017065,2]
[392378269,1761410601065,-10.87,0.00017065,2]
[392378270,1761410601094,-507.79703457,0.00017065,2]
[392378271,1761410601121,-500.0,0.00017065,2]
[392378272,1761410601149,-500.0,0.00017065,2]
[392378273,1761410601176,-500.0,0.00017065,2]
[392378274,1761410601203,-534.86,0.00017065,2]
[392378275,1761410601230,-500.0,0.00017065,2]
[392378276,1761410601256,-500.0,0.00017065,2]
[392378277,1761410601281,-500.0,0.00017065,2]
[392378278,1761410601308,-500.0,0.00017065,2]
[392378279,1761410601335,-392.95593086,0.00017065,2]
[392378280,1761410601526,-107.04406914,0.00017065,2]
[392378281,1761410601553,-500.0,0.00017065,2]
[392378282,1761410601581,-500.0,0.00017065,2]
[392378283,1761410601608,-500.0,0.00017065,2]
[392378284,1761410601635,-520.91,0.00017065,2]
[392378285,1761410601662,-500.0,0.00017065,2]
[392378286,1761410601689,-592.44302597,0.00017065,2]
[392378287,1761410601716,-500.0,0.00017065,2]
[392378288,1761410601743,-501.15017766,0.00017065,2]
[392378289,1761410601770,-503.09,0.00017065,2]
[392378290,1761410601796,-50.73545446,0.00017065,2]
[392378291,1761410602083,-449.26454554,0.00017065,2]
[392378292,1761410602115,-500.0,0.00017065,2]
[392378293,1761410602146,-448.77,0.00017065,2]
[392378294,1761410602173,-500.0,0.00017065,2]
[392378295,1761410602199,-500.0,0.00017065,2]
[392378296,1761410602225,-1491.32,0.00017065,2]
[392378297,1761410602252,-500.0,0.00017065,2]
[392378298,1761410602278,-500.0,0.00017065,2]
[392378304,1761410609705,-526.56,0.00017064,2]
[392378305,1761410609734,-938.71,0.00017064,2]
[392378306,1761410609762,-500.0,0.00017064,2]
[392378307,1761410609789,-643.45,0.00017064,2]
[392378308,1761410610445,-552.17955982,0.00017065,2]
[392378309,1761410610496,370000.0,0.00016965,2]
[392378310,1761410625157,261.0,0.00016935,2]
[392378311,1761410630674,196.0,0.00016,2]
[392378312,1761410630965,196.0,0.000167,2]
[392378313,1761410639292,-300.02100484,0.00017064,2]
[392378314,1761410644322,300.0,0.00017063,2]
[392378315,1761410645978,-199.97899516,0.00017064,2]
[392378316,1761410646007,-750.06,0.00017064,2]
[392378317,1761410646033,-500.0,0.00017064,2]
[392378318,1761410646066,-500.0,0.00017064,2]
[392378319,1761410646093,-500.0,0.00017064,2]
[392378320,1761410646124,-1037.57,0.00017064,2]
[392378321,1761410646152,-827.28,0.00017064,2]
[392378322,1761410646344,-420.19301452,0.00017064,2]
[392378323,1761410646379,-1130.33698548,0.00017064,2]
[392378324,1761410646405,-500.0,0.00017064,2]
[392378325,1761410646433,-500.0,0.00017064,2]
[392378326,1761410646459,-500.0,0.00017064,2]
[392378327,1761410647175,2496.87,0.00017064,2]
[392378328,1761410649886,500.0,0.00017064,2]
[392378329,1761410651508,500.0,0.00017063,2]
[392378330,1761410652858,500.0,0.00017064,2]
[392378331,1761410653474,500.0,0.00017063,2]
[392378332,1761410654461,242.46602904,0.00016996,2]
[392378333,1761410654485,18.53397096,0.00016996,2]
[392378334,1761410656790,500.0,0.00017064,2]
[392378335,1761410656907,500.0,0.00017064,2]
[392378336,1761410658421,500.0,0.00017063,2]
[392378337,1761410660129,500.0,0.00017064,2]
[392378338,1761410662374,1043.4,0.00017064,2]
[392378339,1761410666018,500.0,0.00017064,2]
[392378340,1761410666820,500.0,0.00017063,2]
[392378341,1761410667194,500.0,0.00017064,2]
[392378342,1761410670295,826.49,0.00017063,2]
[392378343,1761410671158,696.24,0.00017064,2]
[392378344,1761410672839,300.00875474,0.00017065,2]
[392378345,1761410677806,952.89,0.00017064,2]
[392378346,1761410677950,595.4,0.00017064,2]
[392378347,1761410678981,500.0,0.00017063,2]
[392378348,1761410680627,1153.85,0.00017063,2]
[392378349,1761410680776,1794.08,0.00017064,2]
[392378350,1761410687249,500.0,0.00017063,2]
[392378351,1761410687410,137.65124526,0.00017064,2]
[392378352,1761410687431,1518.25875474,0.00017064,2]
[392378353,1761410688774,539.4,0.00017064,2]
[392378354,1761410690413,792.56,0.00017063,2]
[392378355,1761410693811,500.0,0.00017064,2]
[392378358,1761410694837,500.0,0.00017064,2]
[392378359,1761410696734,700.09,0.00017064,2]
[392378360,1761410697725,500.0,0.00017064,2]
[392378361,1761410700959,1666.95,0.00017064,2]
[392378362,1761410702802,300.0,0.00017064,2]
[392378363,1761410702842,300.0,0.00017064,2]
[392378364,1761410702917,1200.0,0.00017064,2]
[392378365,1761410702944,300.0,0.00017064,2]
[392378366,1761410703260,527.43,0.00017064,2]
[392378367,1761410703582,300.0,0.00017064,2]
[392378368,1761410703974,355.32124526,0.00017064,2]
[392378369,1761410703996,642.11875474,0.00017064,2]
[392378370,1761410705090,300.0,0.00017064,2]
[392378371,1761410705126,500.0,0.00017063,2]
[392378372,1761410707425,-1800.02124526,0.00017065,2]
[392378373,1761410707596,-10000.01,0.00017065,2]
[392378374,1761410707655,-10000.01,0.00017065,2]
[392378375,1761410707672,-1951.63310236,0.00017065,2]
[392378376,1761410707683,-160.0,0.00017065,2]
[392378377,1761410707694,-500.0,0.00017065,2]
[392378378,1761410707706,-602.01,0.00017065,2]
[392378379,1761410707717,-500.0,0.00017065,2]
[392378380,1761410707727,-890.23,0.00017065,2]
[392378381,1761410707738,-500.0,0.00017065,2]
[392378382,1761410707749,-537.64,0.00017065,2]
[392378383,1761410707761,-500.0,0.00017065,2]
[392378384,1761410707772,-500.0,0.00017065,2]
[392378385,1761410707783,-500.0,0.00017065,2]
[392378386,1761410707794,-500.0,0.00017065,2]
[392378387,1761410707804,-1196.77,0.00017065,2]
[392378388,1761410707814,-500.0,0.00017065,2]
[392378389,1761410707823,-500.0,0.00017065,2]
[392378390,1761410707834,-161.72689764,0.00017065,2]
[392378391,1761410707850,-338.27310236,0.00017065,2]
[392378392,1761410707868,-500.0,0.00017065,2]
[392378393,1761410707886,-605.04253668,0.00017065,2]
[392378394,1761410707900,-500.0,0.00017065,2]
[392378395,1761410707913,-500.0,0.00017065,2]
[392378396,1761410707926,-766.91,0.00017065,2]
[392378397,1761410707940,-500.0,0.00017065,2]
[392378398,1761410707951,-1000.0,0.00017065,2]
[392378399,1761410707967,-696.57,0.00017065,2]
[392378400,1761410707981,-500.0,0.00017065,2]
[392378401,1761410707994,-500.0,0.00017065,2]
[392378402,1761410708007,-500.0,0.00017065,2]
[392378403,1761410708020,-501.7354056,0.00017065,2]
[392378404,1761410708032,-925.23,0.00017065,2]
[392378405,1761410708043,-502.36351939,0.00017065,2]
[392378406,1761410708054,-500.0,0.00017065,2]
[392378407,1761410708064,-313.82551873,0.00017065,2]
[392378408,1761410708074,-350.05991724,0.00017065,2]
[392378409,1761410708125,-149.94008276,0.00017065,2]
[392378410,1761410708163,-1509.38,0.00017065,2]
[392378411,1761410708198,-500.0,0.00017065,2]
[392378412,1761410708232,-500.0,0.00017065,2]
[392378413,1761410708267,-500.0,0.00017065,2]
[392378414,1761410708299,-500.0,0.00017065,2]
[392378415,1761410708341,-500.0,0.00017065,2]
[392378416,1761410708376,-500.0,0.00017065,2]
[392378417,1761410708411,-181.36983448,0.00017065,2]
[392378418,1761410708455,-318.63016552,0.00017065,2]
[392378419,1761410708489,-500.0,0.00017065,2]
[392378420,1761410708525,-500.0,0.00017065,2]
[392378421,1761410708557,-500.0,0.00017065,2]
[392378422,1761410708592,-500.0,0.00017065,2]
[392378423,1761410708626,-580.31,0.00017065,2]
[392378424,1761410708660,-500.0,0.00017065,2]
[392378425,1761410708694,-558.62,0.00017065,2]
[392378426,1761410708725,-605.63537452,0.00017065,2]
[392378427,1761410708758,-373.61891992,0.00017065,2]
[392378428,1761410709156,500.0,0.00017063,2]
[392378429,1761410709348,500.0,0.00017063,2]
[392378430,1761410712605,-213.96859442,0.00017059,2]
[392378431,1761410712636,-506.69408337,0.00017063,2]
[392378432,1761410712666,-500.0,0.00017063,2]
[392378433,1761410712696,-500.0,0.00017063,2]
[392378434,1761410712725,-500.0,0.00017064,2]
[392378435,1761410712758,-126.38108008,0.00017065,2]
[392378436,1761410712788,-500.0,0.00017065,2]
[392378437,1761410712818,-500.0,0.00017065,2]
[392378438,1761410712849,-1029.32,0.00017065,2]
[392378439,1761410712879,-500.0,0.00017065,2]
[392378440,1761410712939,-500.0,0.00017065,2]
[392378441,1761410712968,-631.27,0.00017065,2]
[392378442,1761410713000,-500.0,0.00017065,2]
[392378443,1761410713034,-500.0,0.00017065,2]
[392378444,1761410713065,-578.82,0.00017065,2]
[392378445,1761410713096,-644.59,0.00017065,2]
[392378446,1761410713132,-500.0,0.00017065,2]
[392378447,1761410713171,-500.0,0.00017065,2]
[392378448,1761410713206,-381.27174701,0.00017065,2]
[392378449,1761410713242,-28.10650598,0.00017065,2]
[392378450,1761410713822,-1056.29,0.00017064,2]
[392378451,1761410713858,-914.2,0.00017064,2]
[392378452,1761410713890,-471.89349402,0.00017065,2]
[392378453,1761410713924,-1000.0,0.00017065,2]
[392378454,1761410713956,-500.0,0.00017065,2]
[392378455,1761410713992,-500.0,0.00017065,2]
[392378456,1761410714029,-500.0,0.00017065,2]
[392378457,1761410714460,-197.11547687,0.00017065,2]
[392378458,1761410714495,-115.24301196,0.00017065,2]
[392378459,1761410723826,202.8227168,0.00016067,2]
[392378460,1761410727753,-500.0,0.00017063,2]
[392378461,1761410727783,-500.0,0.00017063,2]
[392378462,1761410727810,-448.53036485,0.00017063,2]
[392378463,1761410727840,-1174.22,0.00017063,2]
[392378464,1761410727869,-500.0,0.00017063,2]
[392378465,1761410727899,-774.31,0.00017063,2]
[392378466,1761410727926,-500.0,0.00017063,2]
[392378467,1761410727956,-500.0,0.00017063,2]
[392378468,1761410728909,205.8892703,0.00017063,2]
[392378469,1761410728929,295.61405509,0.00017063,2]
[392378470,1761410729763,511.97822823,0.00017063,2]
[392378471,1761410731294,1231.65,0.00017063,2]
[392378472,1761410732380,534.93850502,0.00017063,2]
[392378473,1761410732764,261.21334644,0.00017063,2]
[392378474,1761410733257,500.0,0.00017063,2]
[392378475,1761410734612,1392.55,0.00017063,2]
[392378476,1761410735380,500.0,0.00017063,2]
[392378477,1761410738348,500.0,0.00017063,2]
[392378478,1761410738508,500.0,0.00017063,2]
[392378479,1761410740908,2274.19,0.00017063,2]
[392378480,1761410743965,500.0,0.00017063,2]
[392378481,1761410745622,500.0,0.00017063,2]
[392378482,1761410747808,500.0,0.00017063,2]
[392378483,1761410747931,500.0,0.00017063,2]
[392378484,1761410748491,500.0,0.00017063,2]
[392378485,1761410748921,500.0,0.00017063,2]
[392378486,1761410749045,1027.51,0.00017063,2]
[392378487,1761410750610,196.0,0.00016,2]
[392378488,1761410750971,196.0,0.0001642,2]
[392378489,1761410751272,196.0,0.0001684,2]
[392378490,1761410752377,500.0,0.00017063,2]
[392378491,1761410753014,500.0,0.00017063,2]
[392378492,1761410755339,500.0,0.00017063,2]
[392378493,1761410757140,601.52,0.00017063,2]
[392378494,1761410760814,500.0,0.00017063,2]
[392378495,1761410763719,300.0,0.00017063,2]
[392378496,1761410765934,990.41,0.00017063,2]
[392378497,1761410768969,1492.57,0.00017063,2]
[392378498,1761410768992,485.46,0.00017063,2]
[392378499,1761410769814,500.0,0.00017063,2]
[392378500,1761410770622,500.0,0.00017063,2]
[392378501,1761410777275,2006.24,0.00017063,2]
[392378502,1761410777602,500.0,0.00017063,2]
[392378503,1761410778764,3198.22,0.00017063,2]
[392378504,1761410779484,500.0,0.00017063,2]
[392378505,1761410780541,2310.09,0.00016965,2]
[392378506,1761410780569,10000.01,0.00016965,2]
[392378507,1761410780593,10000.01,0.00016965,2]
[392378508,1761410780620,347689.89,0.00016965,2]
[392378509,1761410787003,336.45804654,0.00016965,2]
[392378510,1761410790904,-500.0,0.00017063,2]
[392378511,1761410790932,-500.0,0.00017063,2]
[392378512,1761410790961,-1582.31,0.00017063,2]
[392378513,1761410790990,-500.0,0.00017063,2]
[392378514,1761410791018,-500.0,0.00017063,2]
[392378515,1761410792043,1186.17,0.00017063,2]
[392378516,1761410793555,500.0,0.00017063,2]
[392378517,1761410793586,500.0,0.00017063,2]
[392378518,1761410793615,500.0,0.00017063,2]
[392378519,1761410793646,149.22,0.00017063,2]
[392378520,1761410793669,143.575867,0.00017063,2]
[392378521,1761410793698,500.0,0.00017063,2]
[392378522,1761410793725,404.34385761,0.00017063,2]
[392378523,1761410793753,500.0,0.00017063,2]
[392378524,1761410793781,500.0,0.00017063,2]
[392378525,1761410793814,500.0,0.00017063,2]
[392378526,1761410793842,442.95345627,0.00017063,2]
[392378527,1761410793876,500.0,0.00017063,2]
[392378528,1761410793907,500.0,0.00017063,2]
[392378529,1761410793937,210.33800719,0.00017063,2]
[392378530,1761410793982,500.0,0.00017063,2]
[392378531,1761410794067,500.0,0.00017063,2]
[392378532,1761410794608,500.0,0.00017063,2]
[392378533,1761410794928,500.0,0.00017063,2]
[392378534,1761410796815,1798.20251816,0.00016791,2]
[392378535,1761410807015,2841.84285829,0.00016965,2]
[392378536,1761410808967,2841.84285829,0.00017034,2]
[392378537,1761410837553,300.0,0.00017,2]
[392378538,1761410849863,300.0,0.00017,2]
[392378539,1761410861297,300.0,0.00017,2]
[392378540,1761410870342,196.0,0.00016,2]
[392378541,1761410873665,300.0,0.00017,2]
[392378542,1761410950006,79074.1386228,0.00016965,2]
[392378543,1761410953719,-199.19903338,0.00016965,2]
[392378544,1761410955402,-345.75950302,0.00016965,2]
[392378545,1761410957671,-199.19903338,0.00016795,2]
[392378546,1761410957692,-110.05096662,0.00016965,2]
[392378547,1761410959630,-300.0,0.00016965,2]
[392378548,1761410966040,-300.0,0.00016965,2]
[392378549,1761410967442,-218.90595128,0.00016965,2]
[392378550,1761410984271,-292.92206053,0.00016965,2]
[392378551,1761410986292,-156.56740162,0.00016965,2]
[392378552,1761410989295,-187.88725035,0.00016965,2]
[392378553,1761410989779,196.0,0.00016,2]
[392378554,1761410990801,-382.41348663,0.00016965,2]
[392378555,1761410992213,294.40079074,0.00016962,2]
[392378556,1761410992677,1413.9909215,0.00016064,2]
[392378557,1761410992765,-500.0,0.00016965,2]
[392378558,1761410994766,5000.0,0.00016965,2]
[392378559,1761410994849,-300.0,0.00016965,2]
[392378560,1761410997836,-236.8945931,0.00016965,2]
[392378561,1761411004994,1200.0,0.00016964,2]
[392378562,1761411006012,-282.40713663,0.00016965,2]
[392378563,1761411006574,300.0,0.00016964,2]
[392378566,1761411007550,-279.52149735,0.00016965,2]
[392378575,1761411009627,-391.90342525,0.00016965,2]
[392378578,1761411011332,-242.32286337,0.00016965,2]
[392378579,1761411012825,-309.67655289,0.00016965,2]
[392378580,1761411016817,-314.25338474,0.00016965,2]
[392378581,1761411017791,1595.61828776,0.00016965,2]
[392378582,1761411017813,2404.02393025,0.00016965,2]
[392378583,1761411018730,-345.3404843,0.00016965,2]
[392378584,1761411020587,-300.0,0.00016965,2]
[392378585,1761411022690,-438.03800689,0.00016965,2]
[392378586,1761411025694,621.67537035,0.00016965,2]
[392378596,1761411032612,-415.13565222,0.00016965,2]
[392378597,1761411032624,-84169.16034648,0.00016965,2]
[392378613,1761411032975,216.02795104,0.00016964,2]
[392378614,1761411033710,-344.33515959,0.00016965,2]
[392378615,1761411033766,537.45904603,0.00016964,2]
[392378616,1761411034014,190.03755635,0.00016964,2]
[392378617,1761411037044,-304.61107366,0.00016965,2]
[392378621,1761411038624,-3776.28806406,0.00016965,2]
[392378622,1761411038729,-2303.49,0.00016965,2]
[392378646,1761411040265,-486.40397188,0.00016965,2]
[392378684,1761411041083,-10192.476539,0.00016965,2]
[392378685,1761411042689,-281.31986779,0.00016965,2]
[392378691,1761411046093,-196.0,0.00016965,2]
[392378701,1761411046874,-46058.64681756,0.00016965,2]
[392378702,1761411046887,-63521.23478439,0.00016965,2]
[392378706,1761411048168,-166.10512087,0.00016965,2]
[392378707,1761411051426,2175.0,0.00016774,2]
[392378708,1761411057456,2175.0,0.00016581,2]
[392378709,1761411065931,300.0,0.00016964,2]
[392378710,1761411069453,500.0,0.00030136,120]
[392378711,1761411078897,500.0,0.00030136,120]
[392378712,1761411099322,500.0,0.00016964,2]
[392378713,1761411099355,500.0,0.00016964,2]
[392378714,1761411099382,380.78614598,0.00016964,2]
[392378715,1761411099403,119.21385402,0.00016964,2]
[392378716,1761411099493,452.89101857,0.00016964,2]
[392378717,1761411101836,1254.918936,0.0001606,2]
[392378718,1761411107509,500.0,0.00016964,2]
[392378719,1761411107570,157.69168804,0.00016964,2]
[392378720,1761411110659,389.44189245,0.00016,2]
[392378721,1761411114314,5000.0,0.000201,9]
[392378722,1761411117136,500.0,0.00016964,2]
[392378723,1761411117175,500.0,0.00016964,2]
[392378724,1761411117208,500.0,0.00016964,2]
[392378725,1761411117250,634.29642554,0.00016964,2]
[392378726,1761411117278,500.0,0.00016964,2]
[392378727,1761411117310,500.0,0.00016964,2]
[392378728,1761411117344,500.0,0.00016964,2]
[392378729,1761411117384,500.0,0.00016964,2]
[392378730,1761411117415,500.0,0.00016964,2]
[392378731,1761411117453,500.0,0.00016964,2]
[392378732,1761411117484,500.0,0.00016964,2]
[392378733,1761411117515,500.0,0.00016964,2]
[392378734,1761411117543,500.0,0.00016964,2]
[392378735,1761411117570,491.55618538,0.00016964,2]
[392378736,1761411117594,8.44381462,0.00016964,2]
[392378737,1761411117626,500.0,0.00016964,2]
[392378738,1761411117656,500.0,0.00016964,2]
[392378739,1761411117684,500.0,0.00016964,2]
[392378740,1761411117715,221.87943214,0.00016964,2]
[392378741,1761411117743,500.0,0.00016964,2]
[392378742,1761411117776,500.0,0.00016964,2]
[392378743,1761411117803,500.0,0.00016964,2]
[392378744,1761411117834,500.0,0.00016964,2]
[392378745,1761411117873,500.0,0.00016964,2]
[392378746,1761411117901,500.0,0.00016964,2]
[392378747,1761411117935,500.0,0.00016964,2]
[392378748,1761411117966,500.0,0.00016964,2]
[392378749,1761411118014,500.0,0.00016964,2]
[392378750,1761411118043,500.0,0.00016964,2]
[392378751,1761411118094,380.74024072,0.00016964,2]
[392378752,1761411118138,500.0,0.00016964,2]
[392378753,1761411118172,500.0,0.00016964,2]
[392378754,1761411118200,500.0,0.00016964,2]
[392378755,1761411122378,5000.0,0.000201,9]
[392378756,1761411123576,300.0,0.00016964,2]
[392378757,1761411137881,5000.0,0.000201,9]
[392378758,1761411137987,507.52,0.00017053,3]
[392378759,1761411145448,1088.94651252,0.00016963,2]
[392378760,1761411145469,616.15920247,0.00016963,2]
[392378761,1761411158268,1200.0,0.00016964,2]
[392378762,1761411177997,346.59870202,0.0001901,7]
[392378763,1761411180110,1386.39480806,0.00019028,7]
[392378764,1761411182012,3119.38831815,0.00019047,7]
[392378765,1761411183621,300.0,0.00016964,2]
[392378766,1761411184180,5540.03365303,0.00019066,7]
[392378767,1761411206797,500.0,0.00016964,2]
[392378768,1761411213103,500.0,0.00016964,2]
[392378769,1761411219345,817.59,0.00016964,2]
[392378770,1761411230698,196.0,0.00016,2]
[392378771,1761411231918,500.0,0.00016964,2]
[392378772,1761411236649,500.0,0.00016964,2]
[392378773,1761411243465,300.0,0.00016964,2]
[392378774,1761411243601,1146.91,0.00016964,2]
[392378775,1761411251809,500.0,0.00016964,2]
[392378776,1761411255547,224.0,0.00016616,2]
[392378777,1761411260047,507.65948592,0.00016964,2]
[392378778,1761411261175,2191.69131161,0.00016965,2]
[392378779,1761411261199,2808.30868839,0.00016965,2]
[392378780,1761411261950,500.0,0.00016964,2]
[392378781,1761411266386,224.0,0.00016593,2]
[392378782,1761411267383,960.2177511,0.0001605,2]
[392378783,1761411273350,500.0,0.00016964,2]
[392378784,1761411275806,500.0,0.00016964,2]
[392378785,1761411290184,500.0,0.00016964,2]